Cogmind - Beta 12 @@@ ROGUE MODE // 2023.12.15 @ 19:22:24 Player: Ischenous Result: Destroyed by C-40 Crusher with Compactor Performance ------------- Evolutions (3) 1500 Regions Visited (6) 1200 Robots Destroyed (29) 145 Value Destroyed (895) 895 Prototype IDs (2) 40 Alien Tech Used (0) 0 Bonus (0) 0 TOTAL SCORE: 3780 Bonus ------- None Cogmind --------- Core Integrity 0/700 Matter 137/300 Energy 100/100 System Corruption 1% Temperature Cool (0) Movement Core (50) Location -7/Waste Parts ------- > --- POWER (2) -------- (None) > --- PROPULSION (3) --- (None) > --- UTILITY (6) ------ (None) > --- WEAPON (2) ------- (None) > --- INVENTORY (5) ---- Signal Interpreter Lance Peak State ------------ > --- POWER ------------ Micro Nuclear Core Reinforced Fission Core > --- PROPULSION ------- Gravmag System > --- UTILITY ---------- Improved Launcher Guidance Computer > --- WEAPON ----------- Pulse Rifle Heavy Plasma Cannon > --- INVENTORY -------- Signal Interpreter Lance [Rating: 28] Favorites ----------- Power Ion Engine Engine Ion Engine Power Core Nuclear Core Propulsion Aluminum Leg Leg Aluminum Leg Hover Unit Gravmag System Flight Unit Flight Unit Utility Small Storage Unit Device Heat Sink Storage Small Storage Unit Processor Improved Launcher Guidance Computer Protection Light Armor Plating Weapon Ion Cannon Energy Gun Small Laser Energy Cannon Ion Cannon Ballistic Gun Light Assault Rifle Build | -11 -10 -10 -9 -8 -7 -7 ------- Run | Jun Mat Min Mat Mat Fac Was Slots Evolved 6 | . . . 2 2 2 . Power 1 | . . . 1 . . . Propulsion 1 | . . . . . 1 . Utility 4 | . . . 1 2 1 . Weapon . | . . . . . . . Parts Attached 44 | 4 11 1 5 10 8 5 Power 8 | 1 2 . . 2 1 2 Engine 5 | 1 2 . . 1 1 . Core 3 | . . . . 1 . 2 Reactor . | . . . . . . . Propulsion 15 | 2 4 . 2 3 4 . Treads . | . . . . . . . Leg 13 | 2 4 . 2 2 3 . Wheel . | . . . . . . . Hover 1 | . . . . . 1 . Flight 1 | . . . . 1 . . Utility 8 | 1 1 . 2 2 1 1 Device 4 | . 1 . . 2 1 . Storage 1 | 1 . . . . . . Processor 1 | . . . . . . 1 Hackware . | . . . . . . . Protection 2 | . . . 2 . . . Artifact . | . . . . . . . Weapon 13 | . 4 1 1 3 2 2 Energy Gun 4 | . 2 . . 1 . 1 Energy Cannon 4 | . . 1 1 1 . 1 Ballistic Gun 5 | . 2 . . 1 2 . Ballistic Cannon . | . . . . . . . Launcher . | . . . . . . . Special Weapon . | . . . . . . . Impact Weapon . | . . . . . . . Slashing Weapon . | . . . . . . . Piercing Weapon . | . . . . . . . Special Melee Weapon . | . . . . . . . Unidentified Prototypes . | . . . . . . . Parts Lost 29 | . 6 . 2 12 6 3 Power 8 | . 2 . . 3 1 2 Propulsion 6 | . 2 . . 1 2 1 Utility 7 | . . . 1 5 1 . Weapon 8 | . 2 . 1 3 2 . Highest Loss Streak 6 | . 4 . 1 6 6 3 To Critical Strikes . | . . . . . . . Average Slot Usage (%) 66 | . 70 100 85 62 23 16 Engine 8 | . 8 14 11 7 1 . Core 1 | . . . . 6 . 1 Leg 19 | . 25 28 22 17 7 . Device 7 | . 1 14 11 9 2 . Storage 7 | . 14 14 11 1 . . Protection 3 | . . . 9 2 . . Energy Gun 5 | . 5 14 3 6 . 4 Energy Cannon 8 | . . 12 16 9 . 1 Ballistic Gun 3 | . 13 1 . . 6 . Naked Turns 54 | . . . . . 43 11 Heaviest Build 28 | 10 13 18 26 28 11 13 Greatest Support 34 | 20 20 20 20 34 34 9 Greatest Overweight (x) 2 | . 2 . 1 1 . 1 Average Overweight (x) . | . . . . . . . Largest Inventory Capacity 8 | 8 8 8 8 8 5 5 Average Capacity 6 | 7 8 8 8 5 5 5 Most Carried 8 | 6 8 8 8 8 5 5 Average Carried 5 | 3 6 7 7 5 2 3 Final Capacity 8 | 8 8 8 8 5 5 5 Final Carried 8 | 6 7 8 8 5 2 2 Class Distribution -------------------- 100% | Mutant Dominant Class ---------------- Mutant | -10/Materials Mutant | -10/Mines Mutant | -9/Materials Mutant | -8/Materials Mutant | -7/Factory Mutant | -7/Waste Resources | -11 -10 -10 -9 -8 -7 -7 ----------- Run | Jun Mat Min Mat Mat Fac Was Matter Collected 550 | 202 189 19 42 98 . . Remotely . | . . . . . . . Salvage Created 945 | . 247 . 323 338 37 . Parts 56 | . 16 . 16 21 3 . Haulers Intercepted . | . . . . . . . Recyclers Shooed 2 | . . . . 1 1 . Parts Field Recycled . | . . . . . . . Retrieved Matter . | . . . . . . . Parts Self-Destructed . | . . . . . . . Prevented . | . . . . . . . Kills | -11 -10 -10 -9 -8 -7 -7 ------- Run | Jun Mat Min Mat Mat Fac Was Combat Hostiles Destroyed 24 | . 7 . 7 9 1 . Guns 14 | . 7 . 2 4 1 . Cannons 7 | . . . 4 3 . . AOE 2 | . . . . 2 . . Classes Destroyed 8 | . 2 . 2 4 . . Builder 3 | . . . . 3 . . Recycler 1 | . . . . 1 . . Watcher 1 | . . . 1 . . . Swarmer 7 | . 3 . . 4 . . Grunt 14 | . 4 . 6 3 1 . Brawler 1 | . . . . 1 . . Duelist 1 | . . . 1 . . . Hunter 1 | . . . . 1 . . Best Kill Streak 9 | . 3 . 4 9 1 . Combat Bots Only 5 | . 3 . 4 5 1 . Max Kills in Single Turn 6 | . 1 . 1 6 1 . Gunslinging . | . . . . . . . Exploded 2 | . . . . 2 . . Melee . | . . . . . . . Uniques/NPCs Destroyed . | . . . . . . . Combat | -11 -10 -10 -9 -8 -7 -7 -------- Run | Jun Mat Min Mat Mat Fac Was Damage Taken 4212 | . 796 76 583 1450 925 382 Core 1449 | . 149 . 77 517 328 378 Absorbed by Shields 5 | . . . . 5 . . Regen/Repaired (Parts) 81 | . 81 . . . . . Core Remaining (%) 56 | 100 . 40 80 6 . . Volleys Fired 132 | . 45 . 30 36 18 3 Largest 2 | . 2 . 2 2 2 2 Hottest 153 | . 50 . 135 135 50 153 Shots Fired 194 | . 52 . 46 60 30 6 Gun 130 | . 52 . 12 33 30 3 Cannon 64 | . . . 34 27 . 3 Launcher . | . . . . . . . Special . | . . . . . . . Kinetic 67 | . 32 . . 5 30 . Thermal 127 | . 20 . 46 55 . 6 Explosive . | . . . . . . . Electromagnetic . | . . . . . . . Robot Hit Streak 11 | . 7 . 11 10 5 6 Robot Miss Streak 5 | . 4 . 4 5 5 . Penetration Max . | . . . . . . . Secondary Targets 1 | . 1 . . . . . Max Gunslinging Chain 1 | . 1 . . . . . Shots Hit Robots 116 | . 32 . 30 30 18 6 Core Hits 50 | . 14 . 12 16 8 . Critical Kills 1 | . . . 1 . . . Critical Parts Destroyed . | . . . . . . . Critical Strikes 6 | . 1 . 1 3 . 1 Burn 5 | . 1 . . 3 . 1 Meltdown 1 | . . . 1 . . . Melee Attacks . | . . . . . . . Impact . | . . . . . . . Slashing . | . . . . . . . Piercing . | . . . . . . . Sneak Attacks . | . . . . . . . Combat Hostiles . | . . . . . . . Follow-up Attacks . | . . . . . . . Damage Inflicted 2939 | . 401 . 592 1383 388 175 Guns 1224 | . 400 . 100 286 387 51 Cannons 910 | . . . 492 325 . 93 Explosions 772 | . . . . 772 . . Melee . | . . . . . . . Ramming 33 | . 1 . . . 1 31 Kinetic 724 | . 239 . . 98 387 . Thermal 2151 | . 161 . 592 1254 . 144 Explosive 31 | . . . . 31 . . Electromagnetic . | . . . . . . . Impact . | . . . . . . . Slashing . | . . . . . . . Piercing . | . . . . . . . Highest Corruption 1 | . . . . 1 . 1 Average Corruption 1 | . . . . 1 . 1 Corruption Purged . | . . . . . . . Corruption Blocked . | . . . . . . . Effects 4 | . . . . 4 . . Matter Fused 2 | . . . . 2 . . Energy Discharges 1 | . . . . 1 . . Data Loss (major) 1 | . . . . 1 . . Overload Shots . | . . . . . . . Overflow Damage 74 | . . . 9 65 . . Projectiles 9 | . . . 9 . . . Explosions 65 | . . . . 65 . . Melee . | . . . . . . . Knockbacks . | . . . . . . . Impact . | . . . . . . . Kinetic . | . . . . . . . Secondary . | . . . . . . . Self-Inflicted Damage 104 | . . . . 91 . 13 Shots 1 | . . . . 1 . . Rammed 13 | . 1 . . . . 12 Targets Rammed 15 | . 1 . . . 2 12 Kicked 2 | . . . . . 2 . Crushed . | . . . . . . . Highest Temperature 429 | . 296 . 132 429 28 108 Average Temperature 107 | . 158 . 44 141 10 51 Received Heat Transfer 1197 | . 339 . 228 189 441 . Effects 2 | . 1 . . 1 . . Shutdowns 1 | . . . . 1 . . Energy Bleed 1 | . 1 . . . . . Siege Activations . | . . . . . . . Robots Corrupted . | . . . . . . . Combat Hostiles . | . . . . . . . Parts Fried . | . . . . . . . Impact Corruptions . | . . . . . . . Robots Melted 1 | . . . 1 . . . Combat Hostiles 1 | . . . 1 . . . Parts Melted 9 | . 2 . 3 4 . . Heat Transferred 3576 | . 555 . 1002 1684 . 335 Parts Sabotaged . | . . . . . . . Parts Stolen . | . . . . . . . Parts Stripped . | . . . . . . . Power Chain Reactions . | . . . . . . . Missiles Intercepted . | . . . . . . . Alert | -11 -10 -10 -9 -8 -7 -7 ------- Run | Jun Mat Min Mat Mat Fac Was Peak Influence 231 | . 121 31 182 231 115 33 Initial 44 | . . 21 11 9 44 33 Average 68 | . 46 24 61 126 74 28 Maximum Alert Level 1 | . . . . 1 . . Low Security (%) 89 | 100 100 100 100 54 100 100 Level 1 10 | . . . . 45 . . Level 2 . | . . . . . . . Level 3 . | . . . . . . . Level 4 . | . . . . . . . Level 5 . | . . . . . . . High Security . | . . . . . . . Max Security . | . . . . . . . Squads Dispatched 7 | . 1 . . 3 3 . Investigation 1 | . . . . 1 . . Extermination . | . . . . . . . Reinforcement 6 | . 1 . . 2 3 . Assault . | . . . . . . . Garrison . | . . . . . . . Intercept . | . . . . . . . Searches Triggered . | . . . . . . . Construction Impeded 1 | . . . . . 1 . Haulers Reinforced . | . . . . . . . Active Scanning Responses . | . . . . . . . Cargo Convoy Interrupts . | . . . . . . . Stealth | -11 -10 -10 -9 -8 -7 -7 --------- Run | Jun Mat Min Mat Mat Fac Was Distress Signals 4 | . . . . 2 2 . Communications Jammed . | . . . . . . . Distress Signals . | . . . . . . . Times Spotted 57 | . 7 2 11 20 14 3 Peak Tracking Total 7 | . 3 2 3 7 6 3 Tactical Retreats 2 | . . . . . 2 . Traps | -11 -10 -10 -9 -8 -7 -7 ------- Run | Jun Mat Min Mat Mat Fac Was Traps Triggered 7 | . . . 1 3 3 . Indirectly . | . . . . . . . Trap Hack Attempts . | . . . . . . . Triggered . | . . . . . . . Disarmed . | . . . . . . . Reprogrammed . | . . . . . . . Reused . | . . . . . . . Traps Extracted . | . . . . . . . Installed . | . . . . . . . Triggered 1 | . . 1 . . . . Machines | -11 -10 -10 -9 -8 -7 -7 ---------- Run | Jun Mat Min Mat Mat Fac Was Machines Disabled 7 | . . . 1 6 . . Max in Single Turn 5 | . . . 1 5 . . Machines Repaired . | . . . . . . . Machines Sabotaged . | . . . . . . . Overloaded Fab Kills . | . . . . . . . Hacking | -11 -10 -10 -9 -8 -7 -7 --------- Run | Jun Mat Min Mat Mat Fac Was Machines Accessed 13 | . 6 1 3 2 1 . Terminals 6 | . 4 . 1 1 . . Fabricators . | . . . . . . . Repair Stations 2 | . 1 . . 1 . . Recycling Units 3 | . 1 . 1 . 1 . Scanalyzers 1 | . . . 1 . . . Garrison Access . | . . . . . . . Total Hacks 32 | . 17 1 10 3 1 . Successful 19 | . 9 1 8 1 . . Failed 13 | . 8 . 2 2 1 . Catastrophic 1 | . 1 . . . . . Database Lockouts . | . . . . . . . Manual 3 | . 3 . . . . . Terminals 14 | . 10 . 2 2 . . Fabricators . | . . . . . . . Repair Stations 3 | . 2 . . 1 . . Recycling Units 8 | . 5 . 2 . 1 . Scanalyzers 6 | . . . 6 . . . Garrison Access . | . . . . . . . Terminal Hacks 6 | . 4 1 . 1 . . Record 1 | . 1 . . . . . Prototype ID Bank 1 | . 1 . . . . . Open Door 1 | . . 1 . . . . Alert Level 1 | . 1 . . . . . Zone Layout 2 | . 1 . . 1 . . Fabricator Hacks . | . . . . . . . Repair Station Hacks 2 | . 2 . . . . . Scan Component 1 | . 1 . . . . . Repair 1 | . 1 . . . . . Recycling Unit Hacks 5 | . 3 . 2 . . . Recycle Component 2 | . 2 . . . . . Process 2 | . 1 . 1 . . . Retrieve Matter 1 | . . . 1 . . . Scanalyzer 6 | . . . 6 . . . Insert Component 3 | . . . 3 . . . Analyze 3 | . . . 3 . . . Garrison Access Hacks . | . . . . . . . Unauthorized Hacks . | . . . . . . . Terminals . | . . . . . . . Fabricators . | . . . . . . . Repair Stations . | . . . . . . . Recycling Units . | . . . . . . . Scanalyzers . | . . . . . . . Garrison Access . | . . . . . . . Data Cores Recovered . | . . . . . . . Used . | . . . . . . . Hacking Detections 11 | . 6 . 2 2 1 . Full Trace Events 1 | . . . 1 . . . Feedback Events . | . . . . . . . Feedback Blocked . | . . . . . . . Robot Schematics Acquired . | . . . . . . . Robots Built . | . . . . . . . Authchips . | . . . . . . . Time . | . . . . . . . Total Robot Build Rating . | . . . . . . . Part Schematics Acquired 3 | . . . 3 . . . Parts Built . | . . . . . . . Authchips . | . . . . . . . Time . | . . . . . . . Total Part Build Rating . | . . . . . . . Parts Repaired 1 | . 1 . . . . . Time 26 | . 26 . . . . . Parts Recycled 2 | . 2 . . . . . Recycled Matter 183 | . 30 . 153 . . . Retrieved Matter 231 | . . . 231 . . . Retrieved Components . | . . . . . . . Parts Scanalyzed 3 | . . . 3 . . . Part Schematics Acquired 3 | . . . 3 . . . Parts Damaged 1 | . . . 1 . . . Bothacking | -11 -10 -10 -9 -8 -7 -7 ------------ Run | Jun Mat Min Mat Mat Fac Was Used RIF Installer . | . . . . . . . Robots Hacked . | . . . . . . . Non-combat . | . . . . . . . Combat . | . . . . . . . Robot Hacks Applied . | . . . . . . . Relay Couplers Released . | . . . . . . . Fabnet Peak Effective % . | . . . . . . . Robots Rewired . | . . . . . . . Allies Hacked . | . . . . . . . Hacks Repelled . | . . . . . . . Allies | -11 -10 -10 -9 -8 -7 -7 -------- Run | Jun Mat Min Mat Mat Fac Was Total Allies . | . . . . . . . Largest Group . | . . . . . . . Highest-Rated Group . | . . . . . . . Highest-Rated Ally . | . . . . . . . Total Orders . | . . . . . . . Ally Attacks . | . . . . . . . Total Damage . | . . . . . . . Kills . | . . . . . . . Allies Corrupted . | . . . . . . . Allies Melted . | . . . . . . . Intel | -11 -10 -10 -9 -8 -7 -7 ------- Run | Jun Mat Min Mat Mat Fac Was Robot Analysis Total . | . . . . . . . Derelict Logs Recovered . | . . . . . . . Drone Launches . | . . . . . . . Drone Recoveries . | . . . . . . . Exploration | -11 -10 -10 -9 -8 -7 -7 ------------- Run | Jun Mat Min Mat Mat Fac Was Turns Passed 2554 | 82 531 246 654 611 333 97 Spaces Moved 1829 | 71 335 200 314 367 442 100 Core 115 | 24 10 . . . 81 . Treads . | . . . . . . . Legs 1268 | 47 325 200 314 338 44 . Wheels . | . . . . . . . Hover 209 | . . . . . 109 100 Flight 237 | . . . . 29 208 . Fastest Speed 50 | 50 100 120 120 50 50 60 Average Speed 114 | 96 120 120 179 131 60 63 Slowest Speed 190 | 120 150 120 190 190 130 120 Overloaded Moves . | . . . . . . . Propulsion Burnouts . | . . . . . . . Robots Hopped 1 | . . . . 1 . . Cave-ins Triggered . | . . . . . . . Exploration Rate (%) 26 | 4 27 34 26 27 13 52 Regions Visited 6 Branch Regions 1 Pre-discovered Areas . | . . . . . . . Known Exits Taken . | . . . . . . . Unknown Exits Taken 5 | 1 1 1 1 1 . . Scrap Searched . | . . . . . . . Spaces Dug . | . . . . . . . Terrain Destroyed 41 | . . . 7 34 . . Melee . | . . . . . . . Projectile 14 | . . . 7 7 . . AOE 27 | . . . . 27 . . Terrain Rammed . | . . . . . . . Walls Destroyed . | . . . . . . . Machines Disabled . | . . . . . . . Actions | -11 -10 -10 -9 -8 -7 -7 --------- Run | Jun Mat Min Mat Mat Fac Was Total 2110 | 84 411 208 361 436 481 129 Wait 24 | . 3 1 2 11 5 2 Move 1822 | 70 334 199 313 364 442 100 Hop 1 | . . . . 1 . . Pick Up 56 | 10 15 4 7 10 4 6 Fast Attach . | . . . . . . . Attach 39 | 4 10 1 3 8 8 5 Detach 1 | . . . . . 1 . Swap 5 | . 1 . 2 2 . . Drop 15 | . 2 3 4 4 1 1 Fire 132 | . 45 . 30 36 18 3 Melee . | . . . . . . . Ram 13 | . 1 . . . . 12 Kick 2 | . . . . . 2 . Crush . | . . . . . . . Escape Stasis . | . . . . . . . Rewire . | . . . . . . . Trap . | . . . . . . . Miscellaneous . | . . . . . . . Route ------- -11/Junkyard -10/Materials -10/Mines -9/Materials (discovered 2 exits: *Mat / [*Sto]) -8/Materials -7/Factory -7/Waste History --------- Turn | Location | Event 6 | -11/Junkyard | Discovered new exit (range 15) 83 | -11/Junkyard | Entered Materials 272 | -10/Materials | Lost 4 parts (1p2n1w) 329 | -10/Materials | Build established: Mutant 478 | -10/Materials | Core integrity fell below 50% 511 | -10/Materials | Repaired Aluminum Leg 599 | -10/Materials | Discovered new exit (range 8) 614 | -10/Materials | Entered Mines 629 | -10/Mines | Met a Derelict who couldn't figure out how to use a Trap Extractor 669 | -10/Mines | Met a Derelict bent on vengeance 787 | -10/Mines | Discovered new exit (range 11) 860 | -10/Mines | Entered Materials 860 | -9/Materials | Evolved 2 slots: Power x1, Utility x1 907 | -9/Materials | Discovered new exit (range 4) 1389 | -9/Materials | Discovered new exit (range 12) 1514 | -9/Materials | Entered another Materials area 1514 | -8/Materials | Evolved 2 slots: Utility x2 1681 | -8/Materials | Lost 6 parts (1p4u1w) 2082 | -8/Materials | Core integrity fell below 50% 2101 | -8/Materials | Core integrity fell below 20% 2118 | -8/Materials | Lost 5 parts (2p1u2w) 2122 | -8/Materials | Discovered new exit (range 5) 2125 | -8/Materials | Entered Factory 2125 | -7/Factory | Evolved 2 slots: Propulsion x1, Utility x1 2378 | -7/Factory | Lost 6 parts (1p2n1u2w) 2458 | -7/Factory | Sucked down chute 2458 | -7/Factory | Entered Waste 2467 | -7/Waste | Spotted C-40 Crusher 2485 | -7/Waste | Spotted C-40 Crusher 2491 | -7/Waste | Spotted C-40 Crusher 2492 | -7/Waste | Spotted C-40 Crusher 2540 | -7/Waste | Crushed by Compactor (1 part destroyed, 2 dropped) 2541 | -7/Waste | Core integrity fell below 50% 2544 | -7/Waste | Crushed by Compactor (1 part destroyed, 1 dropped) 2551 | -7/Waste | Core integrity fell below 20% 2555 | -7/Waste | Destroyed by C-40 Crusher with Compactor Last Messages --------------- 02461_ Acquired Imp. Launcher Guidance Computer. 02471_ Acquired Hvy. Plasma Cannon. 02478_ Acquired Broken Nuclear Pulse Array. 02479_ Dropped Broken Nuclear Pulse Array. 02483_ Acquired Mic. Nuclear Core. 02496_ Acquired Rnf. Fission Core. 02524_ Acquired Lance. 02529_ C-40 Crusher suffers critical hit (Burn). 02540_ Rnf. Fission Core crushed. 02540_ Pulse Rifle crushed. 02540_ Hvy. Plasma Cannon crushed. 02540_ Mic. Nuclear Core destroyed. 02544_ Slammed into C-40 Crusher. 02544_ Gravmag System crushed. 02544_ Imp. Launcher Guidance Computer crushed. 02545_ Pulse Rifle crushed. 02545_ Hvy. Plasma Cannon crushed. 02545_ Slammed into C-40 Crusher. 02549_ Destabilizing: System corrupted (+1). 02550_ Slammed into C-40 Crusher. Map ----- +----------------------------------------------------+ | = #??????????? | | ! = #??????????? | | #??????????? | | #??????????? | | #### ######## ######## #??????????? | | #??# #??????# #??????? #??????????? | | #??# #??????# #??????? #??????????? | | #######??# #??????# #??????? #??????????? | | ?????????# ######## ######## ######?????? | | ????????? ????? | | ???????? ????? | | ???????# ????? | | ???????# ????? | | ???????### ######## ######## ######?????? | | ?????????# #??????# #???????? #??????????? | | ?????????# #??????# #????????? #??????????? | | ?????????? ???????# #?????????? #??????????? | | ?????????????????????# #??????????????????????? | | ?????????????????????# #??????????????????????? | | ?????????????????????# #??????????????????????? | | ?????????????????????# #??????????????????????? | | ?????????????????????# #??????????????????????? | | ?????????????????????# #??????????????????????? | | ?????????????????????#CCCC#??????????????????????? | | ?????????????????????#CCCC#??????????????????????? | | ?????????????????????# CC@#??????????????????????? | | ?????????????????????# CC #??????????????????????? | | ?????????????????????######??????????????????????? | | ?????????????????????????????????????????????????? | | ?????????????????????????????????????????????????? | | ?????????????????????????????????????????????????? | | ?????????????????????????????????????????????????? | | ?????????????????????????????????????????????????? | | ?????????????????????????????????????????????????? | | ?????????????????????????????????????????????????? | | ?????????????????????????????????????????????????? | | ?????????????????????????????????????????????????? | | ?????????????????????????????????????????????????? | | ?????????????????????????????????????????????????? | | ?????????????????????????????????????????????????? | | ?????????????????????????????????????????????????? | | ?????????????????????????????????????????????????? | | ?????????????????????????????????????????????????? | | ?????????????????????????????????????????????????? | | ?????????????????????????????????????????????????? | | ?????????????????????????????????????????????????? | | ?????????????????????????????????????????????????? | | ?????????????????????????????????????????????????? | | ?????????????????????????????????????????????????? | | ?????????????????????????????????????????????????? | +----------------------------------------------------+ Best States ------------- Heat Dissipation 45 Energy Generation 29 Energy Capacity 360 Matter Stores 300 Matter Capacity 300 Sight Range 16 Terrain Scan Density 10 ECM Strength 1 Armor Coverage 150 Evasion (%) 60 Launcher Accuracy 30 Item Schematics ----------------- Grenade Launcher | -9/Materials | Scanalyzed Imp. Aluminum Leg | -9/Materials | Scanalyzed Lgt. Ion Engine | -9/Materials | Scanalyzed Robot Schematics ------------------ None Fabricated ------------ Nothing Alien Tech Used ----------------- None Achievements -------------- None Challenges ------------ None Game ------ Seed NetworkArmageddonAccelerator Manual? 0 Play Time 00:39:30 Cumulative 104.3 hours Start 2023.12.15 @ 18:05:30 End 2023.12.15 @ 19:22:24 Sessions 1 Manual Loads 0 Difficulty Rogue Special Mode None Game No. 87 Rogue 87 Adventurer 0 Explorer 0 Win Type - Total 0 Types 0/0/0/0/0/0/0/0/0 Lore% 35 Gallery% 38 Achievement% 30 Wizard Run 0 Options --------- ASCII 0 Keyboard 0 Movement Arrows Keybinds 0 Fullscreen 1 Font 18/SmallcapsGlow Map View 76x50 Tactical HUD 1 Map Filters NONE Filters NONE Steam 1 RUN: f5cb4453-4e98-4960-837a-225a557f45f2